bitfinex/quotes_SOLUSD_20240930
["timestamp","ask_amount","ask_price","bid_price","bid_amount"]
[1727700722850,1.2174138,156.91,156.88,2.0]
[1727700723026,7.5905138,156.91,156.87,15.9362]
[1727700724217,1.2174138,156.91,156.89,6.3737]
[1727700724540,1.2174138,156.91,156.88,2.0]
[1727700725116,1.2174138,156.91,156.88,8.3742]
[1727700725841,1.59341718,156.9,156.87,15.9362]
[1727700726042,7.5905138,156.91,156.88,2.0]
[1727700726916,6.3735,156.9,156.88,2.0]
[1727700727116,1.59357321,156.89,156.86,2.0]
[1727700727436,7.96747321,156.89,156.86,2.0]
[1727700728444,6.3739,156.89,156.86,2.0]
[1727700729423,1.2174138,156.91,156.86,2.0]
[1727700729753,1.2174138,156.91,156.89,2.0]
[1727700730849,1.2174138,156.91,156.9,6.3734]
[1727700733159,1.2174138,156.91,156.89,8.5831]
[1727700733332,1.2174138,156.91,156.9,6.3734]
[1727700733727,1.2174138,156.91,156.89,8.5831]
[1727700733728,1.2174138,156.91,156.89,14.9569]
[1727700734758,1.2174138,156.91,156.89,8.5831]
[1727700735130,1.2174138,156.91,156.89,14.9569]
[1727700735958,1.2174138,156.91,156.89,2.0]
[1727700736156,1.2174138,156.91,156.89,8.3738]
[1727700737137,1.2174138,156.91,156.9,6.3734]
[1727700739734,1.2174138,156.91,156.89,8.3738]
[1727700739935,7.5908138,156.91,156.89,2.0]
[1727700740164,1.2174138,156.91,156.89,2.0]
[1727700744260,7.5905138,156.91,156.89,2.0]
[1727700744462,1.2174138,156.91,156.89,2.0]
[1727700744741,7.5905138,156.91,156.89,2.0]
[1727700745465,1.2174138,156.91,156.89,2.0]
[1727700745764,1.2174138,156.91,156.89,8.3737]
[1727700746063,1.2174138,156.91,156.9,6.3734]
[1727700746246,1.2174138,156.91,156.89,2.0]
[1727700748774,1.2174138,156.91,156.89,8.3737]
[1727700750751,1.2174138,156.91,156.89,2.0]
[1727700751064,1.2174138,156.91,156.89,8.3737]
[1727700757880,6.3734,156.9,156.89,2.0]
[1727700758058,7.96690441,156.9,156.89,2.0]
[1727700758753,7.96690441,156.9,156.87,2.0]
[1727700758955,6.3734,156.9,156.87,2.0]
[1727700759156,6.3734,156.9,156.89,2.0]
[1727700759377,2.8108917,156.91,156.89,2.0]
[1727700759561,9.1839917,156.91,156.89,2.0]
[1727700759763,7.5905138,156.91,156.89,2.0]
[1727700760752,1.2174138,156.91,156.89,2.0]
[1727700763757,1.2174138,156.91,156.89,8.3737]
[1727700763958,6.87783874,156.97,156.91,2.0]
[1727700766191,6.3723,156.93,156.91,2.0]
[1727700771594,6.3717,156.95,156.93,2.0]
[1727700772092,6.3711,156.96,156.93,2.0]
[1727700772892,6.87783874,156.97,156.93,2.0]
[1727700773093,6.3714,156.95,156.93,2.0]
[1727700773867,6.3718,156.94,156.93,2.0]
[1727700775680,6.3715,156.95,156.93,2.0]
[1727700776275,6.87783874,156.97,156.95,1493.6285]
[1727700776974,6.87783874,156.97,156.95,1396.23841477]
[1727700776975,8.47085035,156.97,156.95,1396.23841477]
[1727700777509,6.371,156.96,156.95,1396.23841477]
[1727700785705,6.371,156.96,156.95,1311.50827277]
[1727700788600,6.371,156.96,156.95,1240.49466896]
[1727700791304,0.2614145,156.98,156.95,1242.49466896]
[1727700791489,0.2614145,156.98,156.97,2.0]
[1727700792696,6.6316145,156.98,156.97,2.0]
[1727700793100,6.6316145,156.98,156.95,1242.49466896]
[1727700793489,6.6316145,156.98,156.97,2.0]
[1727700793787,0.2614145,156.98,156.97,2.0]
[1727700795404,1.85411581,156.98,156.97,2.0]
[1727700795719,6.6316145,156.98,156.97,2.0]
[1727700797892,0.2614145,156.98,156.97,2.0]
[1727700799329,0.2614145,156.98,156.97,23.7438]
[1727700807496,0.2614145,156.98,156.97,2.0]
[1727700807793,0.2614145,156.98,156.97,8.3706]
[1727700809111,0.2614145,156.98,156.97,18.6010168]
[1727700809791,0.2614145,156.98,156.97,8.3706]
[1727700810610,0.2614145,156.98,156.97,2.0]
[1727700817798,6.6316145,156.98,156.97,2.0]
[1727700823503,0.2614145,156.98,156.97,18.6010168]
[1727700826447,0.2614145,156.98,156.97,25.0308168]
[1727700829426,6.6653929,157.1,157.05,24.285]
[1727700829615,6.3648,157.12,157.05,24.285]
[1727700830013,6.3641,157.13,157.06,6.3669]
[1727700830317,6.3639,157.14,157.06,6.3669]
[1727700830519,16.2565,157.16,157.06,6.3669]
[1727700830729,22.6197,157.16,157.06,6.3669]
[1727700830932,7.95476819,157.15,157.06,6.3669]
[1727700831231,6.3635,157.15,157.06,6.3669]
[1727700832409,7.95459848,157.15,157.06,6.3669]
[1727700832610,16.2565,157.16,157.06,6.3669]
[1727700832806,1.59108031,157.15,157.06,6.3669]
[1727700833836,7.95438031,157.15,157.06,6.3669]
[1727700836211,6.3633,157.15,157.06,6.3669]
[1727700836739,6.3633,157.15,157.06,16.5973168]
[1727700838508,6.3633,157.15,157.06,22.7501168]
[1727700838714,6.6627039,157.18,157.06,22.7501168]
[1727700838715,6.6627039,157.18,157.17,2.0]
[1727700839017,1.2174138,157.22,157.17,2.0]
[1727700839018,6.3614,157.2,157.17,2.0]
[1727700839925,1.59047703,157.21,157.17,2.0]
[1727700840333,7.87659743,157.22,157.17,2.0]
[1727700840334,6.3618,157.19,157.17,2.0]
[1727700840517,21.5412,157.2,157.19,2.0]
[1727700840940,7.87659743,157.22,157.19,2.0]
[1727700841237,7.95177585,157.21,157.19,2.0]
[1727700841459,6.3613,157.21,157.19,2.0]
[1727700842219,7.95177491,157.21,157.19,2.0]
[1727700842418,6.3613,157.21,157.19,2.0]
[1727700842644,7.95177654,157.21,157.19,2.0]
[1727700842840,6.3613,157.21,157.19,2.0]
[1727700843141,7.95173507,157.21,157.19,2.0]
[1727700843344,6.3613,157.2,157.19,2.0]
[1727700844039,7.87659743,157.22,157.19,2.0]
[1727700844431,6.3622,157.18,157.16,2.0]
[1727700844829,7.87659743,157.22,157.16,2.0]
[1727700845029,6.3617,157.19,157.16,2.0]
[1727700845238,6.3617,157.19,157.18,2.0]
[1727700846432,6.3617,157.19,157.16,2.0]
[1727700846635,6.3614,157.2,157.18,2.0]
[1727700846939,1.59052064,157.19,157.16,2.0]
[1727700847132,7.95232064,157.19,157.16,2.0]
[1727700847353,1.59056315,157.18,157.16,2.0]
[1727700847849,15.2307,157.2,157.16,2.0]
[1727700848019,6.3617,157.19,157.16,2.0]
[1727700850020,6.3621,157.18,157.16,2.0]
[1727700852932,7.95280566,157.18,157.16,2.0]
[1727700853138,6.3621,157.18,157.16,2.0]
[1727700853847,1.5907165,157.17,157.14,2.0]
[1727700854036,6.3631,157.16,157.14,2.0]
[1727700854349,15.2307,157.2,157.16,2.0]
[1727700854350,6.3626,157.17,157.16,2.0]
[1727700856944,14.23749743,157.22,157.16,17.9068]
[1727700857146,7.87659743,157.22,157.2,2.0]
[1727700857344,1.2174138,157.22,157.2,2.0]
[1727700858064,9.16830494,157.22,157.2,2.0]
[1727700858976,7.5780138,157.22,157.2,2.0]
[1727700859748,1.2174138,157.22,157.2,2.0]
[1727700862355,37.80978219,157.26,157.2,2.0]
[1727700863059,37.80978219,157.26,157.22,2.0]
[1727700863462,1.59017017,157.25,157.22,2.0]
[1727700863765,37.80978219,157.26,157.22,2.0]
[1727700864141,6.3602,157.23,157.22,2.0]
[1727700865460,1.59018868,157.25,157.2,2.0]
[1727700865649,6.3604,157.23,157.22,2.0]
[1727700871887,6.3607,157.22,157.21,2.0]
[1727700874374,6.361,157.21,157.19,2.0]
[1727700874554,1.59024881,157.25,157.21,2.0]
[1727700874555,6.3606,157.22,157.21,2.0]
[1727700878063,1.59028328,157.25,157.19,2.0]
[1727700878268,6.3612,157.21,157.19,2.0]
[1727700878576,6.3613,157.2,157.19,2.0]
[1727700879174,1.59028328,157.25,157.19,2.0]
[1727700879383,15.8996,157.24,157.17,2.0]
[1727700879552,6.3613,157.2,157.19,2.0]
[1727700883269,6.3611,157.21,157.19,2.0]
[1727700883476,15.8996,157.24,157.19,2.0]
[1727700883665,6.3613,157.2,157.19,2.0]
[1727700884279,1.59047186,157.22,157.15,2.0]
[1727700884466,25.05806119,157.25,157.15,2.0]
[1727700884659,6.3626,157.17,157.15,2.0]
[1727700886157,7.95379025,157.16,157.15,2.0]
[1727700886357,6.3629,157.16,157.15,2.0]
[1727700893180,17.49690706,157.18,157.1,2.0]
[1727700893585,6.3638,157.14,157.12,2.0]
[1727700893886,1.59126913,157.13,157.12,2.0]
[1727700894672,7.95536913,157.13,157.1,2.0]
[1727700894887,6.3641,157.13,157.1,2.0]
[1727700895886,6.3638,157.14,157.1,2.0]
[1727700896881,1.59133639,157.13,157.1,2.0]
[1727700897264,6.3638,157.14,157.1,2.0]
[1727700898087,1.59133756,157.13,157.1,2.0]
[1727700898893,6.3638,157.14,157.1,2.0]
[1727700899368,15.9059,157.18,157.1,2.0]
[1727700899689,6.3638,157.14,157.1,8.3653]
[1727700900205,15.9059,157.18,157.1,8.3652]
[1727700900489,6.3637,157.14,157.1,2.0]
[1727700900672,1.59138207,157.13,157.1,2.0]
[1727700900993,6.3637,157.14,157.1,2.0]
[1727700901285,35.0959,157.18,157.1,2.0]
[1727700901469,1.59151743,157.17,157.1,2.0]
[1727700901680,6.3649,157.11,157.08,17.9147]
[1727700901877,1.59157614,157.1,157.08,17.9147]
[1727700902277,1.59157614,157.1,157.08,2.0]
[1727700903083,7.95697614,157.1,157.08,2.0]
[1727700903396,7.95737861,157.09,157.05,24.2848]
[1727700903568,6.3657,157.09,157.05,24.2848]
[1727700903969,1.59188135,157.08,157.05,24.2848]
[1727700904490,1.59188135,157.08,157.05,17.9177]
[1727700904782,7.95808135,157.08,157.05,17.9177]
[1727700904984,1.59190891,157.07,157.05,17.9177]
[1727700905874,6.3655,157.1,157.05,24.2847]
[1727700906798,51.0923,157.14,157.05,24.2847]
[1727700906970,6.3658,157.09,157.05,24.2847]
[1727700907895,6.3654,157.1,157.06,6.3669]
[1727700908089,6.3654,157.1,157.07,2.0]
[1727700908787,1.59176997,157.09,157.07,2.0]
[1727700909601,6.3661,157.09,157.05,24.285]
[1727700909898,1.59189261,157.08,157.05,24.285]
[1727700910078,6.3661,157.09,157.05,24.285]
[1727700910692,1.59189222,157.08,157.05,24.285]
[1727700910883,6.3661,157.09,157.05,24.285]
[1727700911573,51.0923,157.14,157.05,24.285]
[1727700911574,51.0923,157.14,157.05,17.9177]
[1727700911776,6.3653,157.1,157.06,6.3669]
[1727700913298,1.5918109,157.09,157.06,6.3669]
[1727700913495,6.3653,157.1,157.07,2.0]
[1727700913802,1.59176844,157.09,157.07,2.0]
[1727700915516,7.95776844,157.09,157.05,17.9177]
[1727700915694,1.59183671,157.08,157.05,17.9177]
[1727700916197,7.95813671,157.08,157.05,17.9177]
[1727700916706,1.59192762,157.07,157.05,17.9177]
[1727700916904,7.95852762,157.07,157.05,2.0]
[1727700917095,1.59202436,157.06,157.05,2.0]
[1727700918790,6.3666,157.07,157.05,2.0]
[1727700919023,6.3662,157.08,157.05,2.0]
[1727700921216,6.3668,157.07,157.05,2.0]
[1727700921527,6.3657,157.1,157.05,8.3672]
[1727700921815,6.366,157.09,157.05,8.3672]
[1727700922408,1.59191982,157.08,157.05,8.3672]
[1727700922802,7.95841982,157.08,157.04,22.2866]
[1727700923398,1.59200025,157.07,157.04,22.2866]
[1727700924220,1.59199984,157.06,157.04,22.2866]
[1727700925216,25.08066517,157.12,157.03,2.0]
[1727700925418,6.367,157.06,157.02,6.3682]
[1727700925718,1.5922227,157.05,157.02,6.3682]
[1727700926090,7.9596227,157.05,157.01,24.2906]
[1727700926295,1.59224142,157.04,157.01,24.2906]
[1727700926614,1.59224142,157.04,157.02,6.3686]
[1727700927197,1.59222123,157.05,157.02,6.3686]
[1727700930018,7.95972123,157.05,157.01,24.2906]
[1727700930225,6.3675,157.05,157.01,24.2906]
[1727700930942,40.87186517,157.12,157.03,17.9202]
[1727700931109,15.7912,157.12,157.05,2.0]
[1727700931302,15.7912,157.12,157.08,6.3661]
[1727700931303,22.1558,157.12,157.08,6.3661]
[1727700932427,22.1558,157.12,157.07,24.2823]
[1727700932723,1.59173069,157.11,157.06,6.3668]
[1727700932922,6.3659,157.09,157.05,8.3673]
[1727700933122,6.3654,157.1,157.05,8.3673]
[1727700933426,15.7912,157.12,157.05,8.3673]
[1727700933629,6.3658,157.09,157.05,8.3673]
[1727700934225,6.3658,157.09,157.05,2.0]
[1727700934434,6.3662,157.08,157.04,22.2866]
[1727700935326,1.59200111,157.07,157.04,22.2866]
[1727700936125,6.3658,157.09,157.04,22.2866]
[1727700937221,6.3658,157.09,157.05,6.3673]
[1727700937414,6.3658,157.09,157.05,8.3673]
[1727700937610,6.3655,157.1,157.06,6.3669]
[1727700937816,1.59189945,157.08,157.06,6.3669]
[1727700938736,1.59180466,157.09,157.06,6.3669]
[1727700938927,1.59180149,157.08,157.05,2.0]
[1727700939131,7.95800149,157.08,157.05,2.0]
[1727700939519,7.95800149,157.08,157.04,22.2865]
[1727700940238,6.3662,157.08,157.04,22.2865]
[1727700942618,6.3659,157.09,157.05,8.3672]
[1727700948641,6.3654,157.1,157.06,6.3669]
[1727700948936,15.4754,157.15,157.08,2.0]
[1727700949121,6.364,157.14,157.1,8.3653]
[1727700949641,21.8388,157.15,157.1,8.3653]
[1727700950224,15.4754,157.15,157.1,8.3653]
[1727700950425,6.3638,157.14,157.1,8.3653]
[1727700951336,6.3648,157.12,157.08,22.2811]
[1727700951632,1.591581,157.11,157.08,22.2811]
[1727700954047,6.3643,157.13,157.09,8.3657]
[1727700956747,1.5914955,157.12,157.09,8.3657]
[1727700960427,1.5914955,157.12,157.05,2.0]
[1727700960629,15.9126,157.11,157.05,2.0]
[1727700960832,6.3662,157.08,157.05,2.0]
[1727700961041,1.59196482,157.07,157.05,2.0]
[1727700961242,6.3659,157.09,157.05,8.3671]
[1727700961426,6.3653,157.11,157.06,6.3666]
[1727700961636,7.95719068,157.1,157.06,6.3666]
[1727700962347,6.366,157.09,157.05,8.3672]
[1727700962648,1.59192757,157.08,157.05,8.3672]
[1727700963349,6.366,157.09,157.05,8.3672]
[1727700963552,6.3642,157.13,157.09,8.3656]
[1727700963745,6.3642,157.13,157.09,2.0]
[1727700964071,1.59155964,157.12,157.09,2.0]
[1727700965251,6.3642,157.13,157.09,2.0]
[1727700965749,1.59151797,157.12,157.09,2.0]
[1727700966751,6.3638,157.14,157.09,2.0]
[1727700966931,7.95568757,157.13,157.09,8.3656]
[1727700967531,6.3638,157.14,157.09,8.3656]
[1727700968145,7.9556902,157.13,157.09,8.3656]
[1727700969239,1.59148878,157.12,157.09,8.3656]
[1727700970860,15.9067,157.17,157.1,6.365]
[1727700972255,6.3638,157.14,157.1,6.365]
[1727700972452,1.59138559,157.13,157.1,6.365]
[1727700973056,7.95558559,157.13,157.09,8.3657]
[1727700973368,1.59151964,157.12,157.09,8.3657]
[1727700973947,6.3642,157.13,157.09,8.3657]
[1727700975256,6.3637,157.14,157.1,6.3653]
[1727700975756,15.9982,157.21,157.11,2.0]
[1727700975757,17.01287449,157.2,157.11,2.0]
[1727700975947,6.3628,157.17,157.13,6.3641]
[1727700976458,6.363,157.16,157.11,8.3645]
[1727700976756,6.363,157.16,157.12,6.3644]
[1727700977546,6.363,157.16,157.13,2.0]
[1727700977743,40.87383862,157.21,157.14,6.3637]
[1727700977744,6.3622,157.18,157.14,6.3637]
[1727700977930,1.59101831,157.17,157.14,6.3637]
[1727700978135,6.3622,157.18,157.14,6.3637]
[1727700978336,1.59095855,157.17,157.14,6.3637]
[1727700978561,6.3622,157.18,157.14,6.3637]
[1727700979069,7.95349027,157.17,157.13,8.364]
[1727700979450,6.3622,157.18,157.13,8.364]
[1727700980152,6.3622,157.18,157.13,2.0]
[1727700980354,6.3622,157.18,157.14,6.3636]
[1727700981741,1.5909969,157.17,157.13,8.364]
[1727700982137,6.3622,157.18,157.14,6.3634]
[1727700983137,1.5909922,157.17,157.13,8.364]
[1727700983742,6.3622,157.18,157.13,8.364]
[1727700984257,1.59100337,157.17,157.13,8.364]
[1727700984461,7.95360337,157.17,157.13,8.364]
[1727700984659,6.3626,157.17,157.13,8.364]
[1727700985170,6.361,157.21,157.15,2.0]
[1727700985346,6.361,157.21,157.14,15.9091]
[1727700985347,1.10885773,157.23,157.17,2.0]
[1727700985666,6.3609,157.21,157.17,8.3624]
[1727700985845,1.59059802,157.2,157.17,8.3624]
[1727700986057,6.3606,157.22,157.17,8.3624]
[1727700986453,1.5905973,157.21,157.17,8.3624]
[1727700987052,6.3606,157.22,157.17,8.3624]
[1727700987756,21.78631336,157.24,157.17,8.3624]
[1727700987961,6.361,157.21,157.17,8.3624]
[1727700988279,7.95199556,157.2,157.17,2.0]
[1727700988648,6.3614,157.2,157.17,2.0]
[1727700992756,7.95254803,157.19,157.17,2.0]
[1727700992956,6.3618,157.19,157.17,2.0]
[1727700993358,6.3613,157.2,157.17,2.0]
[1727700993564,1.59065431,157.19,157.17,2.0]
[1727700993863,6.3613,157.2,157.17,2.0]
[1727700994264,1.59065406,157.19,157.17,2.0]
[1727700998869,6.3613,157.2,157.17,2.0]
[1727700999266,1.59072488,157.19,157.17,2.0]
[1727700999869,6.3609,157.21,157.17,8.3622]
[1727701000857,1.5906674,157.2,157.17,2.0]
[1727701001064,1.5906418,157.23,157.17,2.0]
[1727701001862,6.3609,157.21,157.17,8.3622]
[1727701002065,1.59061443,157.2,157.17,8.3622]
[1727701005587,7.95191443,157.2,157.17,2.0]
[1727701005791,1.59070863,157.19,157.17,2.0]
[1727701006381,15.9041,157.25,157.19,2.0]
[1727701006594,15.9041,157.25,157.19,8.3617]
[1727701006595,6.3602,157.23,157.19,8.3617]
[1727701006896,7.95098352,157.22,157.19,2.0]
[1727701007591,7.95098352,157.22,157.18,22.2669]
[1727701007891,1.59049808,157.21,157.18,22.2669]
[1727701008265,50.9529,157.25,157.17,2.0]
[1727701008485,6.3606,157.22,157.19,2.0]
[1727701008876,1.59051984,157.21,157.19,2.0]
[1727701010289,6.3606,157.22,157.19,2.0]
[1727701011073,1.5904876,157.21,157.19,2.0]
[1727701011382,6.3606,157.22,157.19,2.0]
[1727701011786,1.59048661,157.21,157.18,6.362]
[1727701011972,7.95168661,157.21,157.17,24.2685]
[1727701012178,6.3612,157.21,157.17,24.2685]
[1727701015375,6.3606,157.22,157.19,2.0]
[1727701016289,1.59049181,157.21,157.19,2.0]
[1727701016893,7.95139181,157.21,157.17,24.2682]
[1727701017393,6.3609,157.21,157.17,24.2682]
[1727701018270,0.1826466,157.26,157.24,8.3596]
[1727701018601,0.1826466,157.26,157.24,8.3595]
[1727701018777,0.1826466,157.26,157.24,2.0]
[1727701020185,1.7726296,157.26,157.24,2.0]
[1727701020379,1.7726296,157.26,157.23,22.2599]
[1727701020380,8.1315296,157.26,157.22,2.0]
[1727701021169,6.5415466,157.26,157.22,2.0]
[1727701024313,1.59011401,157.25,157.22,2.0]
[1727701024471,7.94951401,157.25,157.22,2.0]
[1727701025197,6.3601,157.23,157.22,2.0]
[1727701026000,6.3598,157.24,157.22,2.0]
[1727701027987,0.1826466,157.26,157.22,2.0]
[1727701028306,0.1826466,157.26,157.25,8.3593]
[1727701030197,0.1826466,157.26,157.25,8.83563507]
[1727701031412,0.1826466,157.26,157.25,8.3593]
[1727701034010,0.1826466,157.26,157.25,8.83498455]
[1727701034229,0.1826466,157.26,157.25,8.3593]
[1727701035992,0.1826466,157.26,157.25,2.0]
[1727701038219,0.1826466,157.26,157.23,13.0185]
[1727701038220,1.77236679,157.26,157.23,2.0]
[1727701038386,6.3597,157.24,157.23,2.0]
[1727701038590,1.77236679,157.26,157.21,2.0]
[1727701038818,6.3601,157.23,157.21,2.0]
[1727701039140,7.95077339,157.22,157.21,2.0]
[1727701039419,6.3605,157.22,157.21,2.0]
[1727701042293,6.3528,157.23,157.17,2.0]
[1727701042497,6.3528,157.23,157.15,2.0]
[1727701042498,6.3629,157.16,157.15,2.0]
[1727701043018,6.3636,157.15,157.13,2.0]
[1727701043403,15.9041,157.2,157.13,2.0]
[1727701043404,6.3637,157.14,157.13,2.0]
[1727701044125,6.3653,157.11,157.05,22.2852]
[1727701044317,1.5915122,157.1,157.05,15.9182]
[1727701044500,6.3659,157.09,157.05,15.9182]
[1727701044702,6.3659,157.09,157.03,6.3678]
[1727701044903,1.59166276,157.08,157.03,6.3678]
[1727701045103,6.3658,157.09,157.04,6.3674]
[1727701045504,6.3661,157.08,157.04,6.3674]
[1727701046516,6.3661,157.08,157.02,15.9213]
[1727701046717,6.367,157.06,157.02,15.9213]
[1727701047022,6.3666,157.07,157.02,22.2898]
[1727701047204,1.59188928,157.06,157.02,22.2898]
[1727701047527,6.3661,157.09,157.04,6.3677]
[1727701048923,15.9122,157.12,157.02,15.9213]
[1727701048924,7.9579235,157.08,157.03,6.3681]
[1727701049219,7.9579235,157.08,157.02,15.9213]
[1727701049220,1.59185524,157.12,157.04,15.9186]
[1727701049427,6.3649,157.11,157.06,6.3669]
[1727701049722,1.59158429,157.1,157.04,15.9186]
[1727701049910,6.3654,157.1,157.05,6.3673]
[1727701050094,7.95745529,157.09,157.04,22.2863]
[1727701050297,6.3659,157.09,157.04,22.2863]
[1727701050517,7.95815115,157.08,157.04,15.9186]
[1727701051024,1.59188396,157.07,157.04,15.9186]
[1727701052204,6.3666,157.07,157.03,6.3681]
[1727701052404,16.2227,157.09,157.03,6.3681]
[1727701052601,22.5887,157.09,157.03,6.3681]
[1727701052812,22.5887,157.09,157.01,15.9222]
[1727701052813,22.5887,157.09,157.04,0.48126068]
[1727701053019,22.5887,157.09,157.04,6.3676]
[1727701053624,22.5887,157.09,157.05,6.3673]
[1727701054115,22.5887,157.09,157.04,0.48104806]
[1727701054526,6.3655,157.1,157.05,6.3673]
[1727701054838,6.3655,157.1,157.06,6.84775244]
[1727701055009,6.3655,157.1,157.06,6.3669]
[1727701055209,6.3649,157.11,157.07,6.3665]
[1727701055438,1.10938949,157.14,157.11,6.3649]
[1727701055606,6.5939,157.18,157.12,0.38946839]
[1727701055805,6.3622,157.18,157.13,6.3637]
[1727701056227,15.9409,157.21,157.16,6.3628]
[1727701056428,6.3613,157.2,157.16,6.3628]
[1727701056818,22.3019,157.21,157.16,6.3628]
[1727701057135,22.3019,157.21,157.16,6.75101317]
[1727701057918,1.59052728,157.2,157.15,15.9077]
[1727701058126,7.95182728,157.2,157.15,22.2709]
[1727701058735,6.3613,157.2,157.15,22.2709]
[1727701059433,1.59054062,157.2,157.15,15.9077]
[1727701059628,6.3618,157.19,157.15,15.9077]
[1727701060848,7.95302411,157.18,157.13,6.3639]
[1727701061037,6.3624,157.18,157.13,6.3639]
[1727701061537,1.59071329,157.17,157.12,15.9109]
[1727701061747,6.363,157.16,157.12,22.2753]
[1727701064551,6.3618,157.19,157.14,6.3636]
[1727701064720,6.3621,157.18,157.14,6.3636]
[1727701065044,6.3621,157.18,157.15,0.38853931]
[1727701065340,6.3618,157.19,157.15,0.38853931]
[1727701065723,6.3618,157.19,157.14,6.3636]
[1727701065927,6.3618,157.19,157.09,31.828]
[1727701066121,6.5939,157.22,157.14,15.9088]
[1727701066122,6.3613,157.2,157.14,15.9088]
[1727701066420,6.3613,157.2,157.15,6.3632]
[1727701066640,6.3613,157.2,157.14,15.9088]
[1727701066836,6.3613,157.2,157.16,6.3628]
[1727701070345,6.3613,157.2,157.15,6.3632]
[1727701070928,6.3618,157.19,157.15,6.3632]
[1727701071244,6.3618,157.19,157.14,15.9088]
[1727701071426,6.3618,157.19,157.14,22.2724]
[1727701071750,6.3621,157.18,157.14,22.2724]
[1727701072130,6.3615,157.2,157.15,6.363]
[1727701072342,1.59062835,157.21,157.15,6.33302]
[1727701072536,6.3617,157.19,157.15,6.33302]
[1727701072944,6.3614,157.2,157.16,6.75118222]
[1727701074233,6.3614,157.2,157.16,0.38838222]
[1727701074442,6.3614,157.2,157.16,6.3628]
[1727701076330,1.59043221,157.23,157.18,6.3619]
[1727701076668,15.8988,157.25,157.18,6.3619]
[1727701076850,1.59020994,157.24,157.18,6.3619]
[1727701077023,15.8988,157.25,157.18,6.3619]
[1727701077353,1.59020944,157.24,157.18,6.3619]
[1727701077841,6.3609,157.22,157.17,6.3624]
[1727701078028,1.59020944,157.24,157.17,6.3624]
[1727701078029,6.361,157.21,157.17,6.3624]
[1727701078430,6.361,157.21,157.16,15.907]
[1727701078635,1.59041337,157.2,157.17,6.3624]
[1727701078831,6.3611,157.21,157.18,0.38780317]
[1727701079550,15.8988,157.25,157.18,0.38780317]
[1727701079754,6.3598,157.24,157.2,6.3613]
[1727701080049,0.1826466,157.26,157.18,15.9046]
[1727701080050,0.1826466,157.26,157.22,15.9009]
[1727701080235,0.1826466,157.26,157.23,6.23917]
[1727701080636,0.1826466,157.26,157.22,22.2612]
[1727701081552,0.1826466,157.26,157.23,0.38653431]
[1727701082334,0.1826466,157.26,157.22,22.2612]
[1727701082636,0.1826466,157.26,157.2,6.3612]
[1727701082842,6.3593,157.25,157.2,6.3612]
[1727701083439,0.1826466,157.26,157.2,6.3612]
[1727701083440,6.3598,157.24,157.2,6.3612]
[1727701085159,6.3605,157.22,157.19,32.2893]
[1727701085457,6.3601,157.23,157.19,15.9037]
[1727701085659,6.3601,157.23,157.19,16.29104448]
[1727701085955,1.77279144,157.26,157.17,6.3624]
[1727701086141,1.77279144,157.26,157.16,15.9068]
[1727701086142,6.361,157.21,157.16,22.2693]
[1727701086338,6.3613,157.2,157.16,22.2693]
[1727701086662,6.3613,157.2,157.16,15.9068]
[1727701087155,6.3613,157.2,157.17,0.38792303]
[1727701087858,6.3613,157.2,157.16,15.9068]
[1727701090267,15.8987,157.25,157.15,22.2565]
[1727701090458,6.3617,157.19,157.15,22.2565]
[1727701091262,6.3617,157.19,157.16,0.38810951]
[1727701091866,15.8987,157.25,157.16,0.38810951]